{"text_format":"1","workbook":"xlsx","n_sheets":6,"sheets":["Data","First_Names","Countries","Gen_Corr_Target_Corr","Gen_Corr_Input_Series","Gen_Corr_Output_Series"],"not_rendered":{"charts":0,"images":0,"macros":1,"external_links":0,"defined_names":2,"comments":0,"pivot_tables":0},"unopened":[],"bounds":{"document_bytes":16777216,"sheet_cells":100000,"rows_first":2000,"rows_last":500,"rows_between":2000,"halvings":0,"cell_chars":16384,"cell_head_chars":4096},"cells_cut":0,"cells_raw":0,"read":"whole","date_system":"1900"}

{"sheet":"Data","index":0,"n_rows":70,"n_cols":10,"rows_kept":70,"cut":false,"hidden":false,"merged":[]}
["Test Input 1","Test Input 2","Test Result","Correct Result"," ","Test Data Generator",null,"Input 1","Input 2","Explanation"]
[1,2,"Test formulas go here","Cross check formulas"," "]
[6,3,null,null," ","Number of test records",null,6,6]
[5,5,null,null," ","Shuffle after generation",null,false,true,"Perform a random shuffle after data generation"]
[4,4,null,null," ","Data type"]
[2,6,null,null," ","Boolean",null,null,null,"Weight across data types"]
[3,1,null,null," ",null,"True",1,1,"Weight within Boolean data type"]
[null,null,null,null," ",null,"False",1,1,"Weight within Boolean data type"]
[null,null,null,null," ","Currency",null,null,null,"Weight across data types"]
[null,null,null,null," ",null,"Min",10,null,"Choose either Min and Max ..."]
[null,null,null,null," ",null,"Max",20]
[null,null,null,null," ",null,"Avg",null,6,"... or Avg and StDev"]
[null,null,null,null," ",null,"StDev",null,2]
[null,null,null,null," ","Date",null,null,null,"Weight across data types"]
[null,null,null,null," ",null,"Min","2000-01-01",null,"Choose either Min and Max ..."]
[null,null,null,null," ",null,"Max","2013-01-01"]
[null,null,null,null," ",null,"Avg",null,"2022-01-25","... or Avg and StDev"]
[null,null,null,null," ",null,"StDev",null,180]
[null,null,null,null," ","Decimal",null,null,null,"Weight across data types"]
[null,null,null,null," ",null,"Min",null,null,"Choose either Min and Max ..."]
[null,null,null,null," ",null,"Max"]
[null,null,null,null," ",null,"Avg",5,100,"... or Avg and StDev"]
[null,null,null,null," ",null,"StDev",5,50]
[null,null,null,null," ","Double",null,null,null,"Weight across data types"]
[null,null,null,null," ",null,"Min",null,null,"Choose either Min and Max ..."]
[null,null,null,null," ",null,"Max"]
[null,null,null,null," ",null,"Avg",5,100,"... or Avg and StDev"]
[null,null,null,null," ",null,"StDev",1,50]
[null,null,null,null," ","Long",null,1,1,"Weight across data types"]
[null,null,null,null,null,null,"Sum",null,null,"Choose either Sum of integers ..."]
[null,null,null,null,null,null,"Min",null,null,"of this minimal value"]
[null,null,null,null," ",null,"Min",1,1,"... or Min, Max and MaxRepeat"]
[null,null,null,null," ",null,"Max",6,6]
[null,null,null,null," ",null,"MaxRepeat",1,1,"1 = Unique numbers, [empty] = any"]
[null,null,null,null," ","String",null,null,null,"Weight across data types"]
[null,null,null,null," ",null,"Length",null,null,"Either a simple string ..."]
[null,null,null,null," ",null,"Min","A","a","\"A\" or \"a\""]
[null,null,null,null," ",null,"Max","Z","z","\"Z\" or \"z\""]
[null,null,null,null," ",null,"NextTabRepeat",null,null,"... or an item from next tab ... First define how often each item might occur"]
[null,null,null,null," ",null,"NextTabColumn",2,2,"Column of items in next tab"]
[null,null,null,null," ",null,"NextTabItemRepeat",1,1,"... or an item from weighted item groups"]
[null,null,null,null," ",null,"NextTabItemColumn",1,1,"Column of items in next tab"]
[null,null,null,null," ",null,"NextTabGroupColumn",2,2,"Column of item groups in next tab"]
[null,null,null,null," ",null,"M",1,1,"List item groups on the left and then their weights"]
[null,null,null,null," ",null,"F",2,1]
[null,null,null,null," ",null,"E",1]
[null,null,null,null," "]
[null,null,null,null," "]
[null,null,null,null," "]
[null,null,null,null," "]
[null,null,null,null," "]
[null,null,null,null," "]
[null,null,null,null," "]
[null,null,null,null," "]
[null,null,null,null," "]
[null,null,null,null," "]
[null,null,null,null," "]
[null,null,null,null," "]
[null,null,null,null," "]
[null,null,null,null," "]
[null,null,null,null," "]
[null,null,null,null," "]
[null,null,null,null," "]
[null,null,null,null," "]
[null,null,null,null," "]
[null,null,null,null," "]
[null,null,null,null," "]
[null,null,null,null," "]
[null,null,null,null," "]
[null,null,null,null," "]

{"sheet":"First_Names","index":1,"n_rows":1520,"n_cols":4,"rows_kept":1520,"cut":false,"hidden":false,"merged":[]}
["Name","Gender","Source: ","http://www.google.de/url?sa=t&rct=j&q=&esrc=s&source=web&cd=10&ved=0CGEQFjAJ&url=http%3A%2F%2Fwww.geocities.ws%2Fotterz424%2Fbaby_names.xls&ei=faNtUYrkOpHXsgaojYGwBw&usg=AFQjCNEP3aRtotq8zpXimvQhaj5FyXrBXw&bvm=bv.45218183,bs.1,d.Yms&cad=rja"]
["AARON","M"]
["ABBIE","F"]
["ABBOTT","M"]
["ABBRA","F"]
["ABBY","F"]
["ABE","M"]
["ABEL","M"]
["ABENI","F"]
["ABIA","F"]
["ABIBA","F"]
["ABIE","E"]
["ABIGAIL","F"]
["ABNER","M"]
["ABRAHAM","M"]
["ABRAM","M"]
["ABRIANNA","F"]
["ABRIENDA","F"]
["ABRIL","F"]
["ABSOLOM","M"]
["ABU","M"]
["ACACIA","F"]
["ACE","M"]
["ADA","F"]
["ADAH","F"]
["ADAIR","M"]
["ADALIA","F"]
["ADAM","M"]
["ADAMINA","F"]
["ADAMMA","F"]
["ADARA","F"]
["ADDISON","M"]
["ADE","M"]
["ADELA","F"]
["ADELAIDE","F"]
["ADELE","F"]
["ADELINE","F"]
["ADELIO","M"]
["ADELLE","F"]
["ADEM","M"]
["ADEN","M"]
["ADERES","F"]
["ADIE","F"]
["ADIEL","M"]
["ADILA","F"]
["ADINA","F"]
["ADITA","F"]
["ADLAI","M"]
["ADLI","M"]
["ADOLFO","M"]
["ADOLPH","M"]
["ADONAI","M"]
["ADONIA","F"]
["ADORA","F"]
["ADRIAN","M"]
["ADRIANA","F"]
["ADRIANO","M"]
["ADRIENNE","F"]
["ADSILA","F"]
["ADY","F"]
["AELAN","F"]
["AFFRICA","F"]
["AFRA","F"]
["AFRIC","F"]
["AFRICA","F"]
["AFTON","E"]
["AGAMEMNON","M"]
["AGATHA","F"]
["AGGIE","F"]
["AGNES","F"]
["AH CY","F"]
["AHANU","M"]
["AHAVA","F"]
["AI","M"]
["AIDA","F"]
["AIDAN","M"]
["AIKO","F"]
["AILEEN","F"]
["AILIS","F"]
["AILISH","F"]
["AIMEE","F"]
["AINE","F"]
["AINSLEY","F"]
["AISLIN","F"]
["AISLING","F"]
["AISLINN","F"]
["AIZZA","F"]
["AJA","M"]
["AJANI","M"]
["AJAY","M"]
["AKAMU","M"]
["AKILI","M"]
["AKUJI","M"]
["AL","M"]
["ALAINA","F"]
["ALAIR","M"]
["ALAKE","M"]
["ALAN","M"]
["ALANA","F"]
["ALANNA","F"]
["ALAQUA","F"]
["ALARIC","M"]
["ALASTAIR","M"]
["ALAURA","F"]
["ALAYNA","F"]
["ALBAN","M"]
["ALBANY","F"]
["ALBERT","M"]
["ALBERTA","F"]
["ALBERTO","M"]
["ALBIN","M"]
["ALBINA","F"]
["ALDA","F"]
["ALDAN","M"]
["ALDEN","M"]
["ALDON","M"]
["ALDONA","F"]
["ALEC","M"]
["ALEDA","F"]
["ALEJANDRO","M"]
["ALEM","M"]
["ALENA","F"]
["ALESSA","F"]
["ALETA","F"]
["ALETHA","F"]
["ALETHEA","F"]
["ALETTA","F"]
["ALEX","E"]
["ALEXA","F"]
["ALEXANDER","M"]
["ALEXANDRA","F"]
["ALEXANDRIA","F"]
["ALEXIA","F"]
["ALEXIS","E"]
["ALFONSO","M"]
["ALFRED","M"]
["ALGERON","M"]
["ALI","E"]
["ALIA","F"]
["ALICE","F"]
["ALICIA","F"]
["ALIDA","F"]
["ALIJAH","M"]
["ALIKA","F"]
["ALIMA","F"]
["ALINA","F"]
["ALISHA","F"]
["ALISON","F"]
["ALISSA","F"]
["ALIYA","F"]
["ALIZA","F"]
["ALIZE","F"]
["ALKA","F"]
["ALLEGRA","F"]
["ALLEN","M"]
["ALLENE","F"]
["ALLIE","F"]
["ALLISON","F"]
["ALLYSON","F"]
["ALMA","F"]
["ALMEDA","F"]
["ALMIRA","F"]
["ALOHA","F"]
["ALOHILANI","F"]
["ALPHONSE","M"]
["ALSATIA","F"]
["ALTHEA","F"]
["ALTON","M"]
["ALVA","E"]
["ALVIN","M"]
["ALYN","F"]
["ALYSON","F"]
["ALYSSA","F"]
["AMADAHY","F"]
["AMADEUS","M"]
["AMADOR","M"]
["AMALIA","F"]
["AMALIE","F"]
["AMAN","F"]
["AMANA","F"]
["AMANDA","F"]
["AMANDLA","F"]
["AMARA","F"]
["AMARANTA","F"]
["AMARANTE","F"]
["AMARANTH","F"]
["AMARIS","F"]
["AMARYLLIS","F"]
["AMAYA","F"]
["AMBER","F"]
["AMBROSE","M"]
["AMELIA","F"]
["AMENA","F"]
["AMI","F"]
["AMIEL","E"]
["AMINA","F"]
["AMIR","M"]
["AMIRI","E"]
["AMITY","F"]
["AMMA","F"]
["AMORINA","F"]
["AMOS","M"]
["AMY","F"]
["AN","E"]
["ANA","F"]
["ANAIS","F"]
["ANALIESE","F"]
["ANALISE","F"]
["ANALU","M"]
["ANANA","F"]
["ANANDO","M"]
["ANASTACIA","F"]
["ANASTASIA","F"]
["ANATOLA","M"]
["ANATOLE","M"]
["ANDE","M"]
["ANDIE","F"]
["ANDRA","F"]
["ANDRALYN","F"]
["ANDRE","M"]
["ANDREA","F"]
["ANDREAS","M"]
["ANDRES","M"]
["ANDREW","M"]
["ANDY","M"]
["ANEMONE","F"]
["ANEVAY","F"]
["ANGEL","E"]
["ANGELA","F"]
["ANGELICA","F"]
["ANGELINA","F"]
["ANGELIQUE","F"]
["ANGELITO","M"]
["ANGELO","M"]
["ANGIE","F"]
["ANGUS","M"]
["ANH","E"]
["ANI","F"]
["ANIKA","F"]
["ANILA","F"]
["ANISA","F"]
["ANITA","F"]
["ANITRA","F"]
["ANJA","F"]
["ANJELITA","F"]
["ANLON","M"]
["ANN","F"]
["ANNA","F"]
["ANNABEL","F"]
["ANNABELLA","F"]
["ANNABELLE","F"]
["ANNALISE","F"]
["ANNAMIKA","F"]
["ANNE","F"]
["ANNEKE","F"]
["ANNETTE","F"]
["ANNICE","F"]
["ANNICK","F"]
["ANNIE","F"]
["ANNIS","F"]
["ANNISSA","F"]
["ANNORA","F"]
["ANNOT","E"]
["ANOKI","M"]
["ANTHEA","F"]
["ANTHONY","M"]
["ANTIONETTE","F"]
["ANTOINETTE","F"]
["ANTONIA","F"]
["ANTONIE","F"]
["ANTONY","M"]
["ANTRANIG","M"]
["ANWAR","M"]
["ANYA","F"]
["AOKO","E"]
["AOLANI","F"]
["APHRODITE","F"]
["APOLLO","M"]
["APPOLLO","M"]
["APRIA","F"]
["APRIL","F"]
["ARABELA","F"]
["ARABELLA","F"]
["ARACELY","F"]
["ARAM","M"]
["ARAN","M"]
["ARCH","M"]
["ARCHER","M"]
["ARCHIBALD","M"]
["ARCHIE","M"]
["ARDELLE","F"]
["ARDEN","E"]
["ARDICE","F"]
["ARDITH","F"]
["ARELLA","F"]
["AREN","M"]
["ARETHA","F"]
["ARGUS","M"]
["ARI","M"]
["ARIA","F"]
["ARIADNE","F"]
["ARIANA","F"]
["ARIANE","F"]
["ARIANNA","F"]
["ARIC","M"]
["ARIEL","E"]
["ARIELLA","F"]
["ARIELLE","F"]
["ARIEN","E"]
["ARIF","M"]
["ARIN","F"]
["ARISSA","F"]
["ARISTA","F"]
["ARIZA","F"]
["ARKADIY","M"]
["ARLEN","M"]
["ARLENE","F"]
["ARLO","M"]
["ARLYNDA","F"]
["ARMAND","M"]
["ARMANDE","M"]
["ARMANDO","M"]
["ARMELLE","F"]
["ARMINA","F"]
["ARNAUD","M"]
["ARNE","M"]
["ARNIE","M"]
["ARNOLD","M"]
["ARON","M"]
["ART","M"]
["ARTEMIS","E"]
["ARTEMUS","E"]
["ARTHUR","M"]
["ARTIE","M"]
["ARTY","M"]
["ARVID","E"]
["ARVIN","M"]
["ASA","F"]
["ASABI","F"]
["ASALIE","F"]
["ASASIA","F"]
["ASH","E"]
["ASHA","F"]
["ASHBY","E"]
["ASHER","M"]
["ASHIA","F"]
["ASHLEY","E"]
["ASHLING","E"]
["ASHLYN","F"]
["ASHTON","M"]
["ASHTYN","F"]
["ASIA","F"]
["ASIS","F"]
["ASLI","F"]
["ASNEE","M"]
["ASTA","F"]
["ASTER","F"]
["ASTHORE","E"]
["ASTIN","E"]
["ASTRA","F"]
["ASTRID","F"]
["ATALANTA","F"]
["ATALO","M"]
["ATHALIA","F"]
["ATHENA","F"]
["ATIRA","F"]
["AUBERTA","F"]
["AUBREY","E"]
["AUBRIANNA","F"]
["AUDI","F"]
["AUDRA","F"]
["AUDREY","F"]
["AUGUST","M"]
["AUGUSTIN","M"]
["AUGUSTUS","M"]
["AULII","E"]
["AURE","E"]
["AURELIA","F"]
["AURORA","F"]
["AURORETTE","F"]
["AUSTIN","M"]
["AUTUMN","F"]
["AVA","F"]
["AVAK","M"]
["AVALON","F"]
["AVEDIS","M"]
["AVEL","M"]
["AVELINE","F"]
["AVERY","E"]
["AVI","E"]
["AVIS","E"]
["AVITAL","M"]
["AVIV","M"]
["AVIVA","F"]
["AVONGARA","F"]
["AXEL","M"]
["AXELLE","E"]
["AYA","F"]
["AYAME","F"]
["AYANNA","F"]
["AYLA","F"]
["AYOKA","F"]
["AYSHA","F"]
["AZANA","F"]
["AZIZA","F"]
["AZIZE","E"]
["AZRA","E"]
["AZRIEL","E"]
["AZUKA","F"]
["AZURA","F"]
["BABA","F"]
["BABETTE","F"]
["BABY","E"]
["BAHARI","M"]
["BAILEY","E"]
["BAIRD","M"]
["BAIRN","M"]
["BAKA","F"]
["BAKULA","E"]
["BALLARD","M"]
["BALTHASAR","M"]
["BAMBI","F"]
["BANJI","E"]
["BARAK","M"]
["BARB","F"]
["BARBARA","F"]
["BARBIE","F"]
["BARCLAY","M"]
["BARKE","M"]
["BARNABAS","M"]
["BARNARD","M"]
["BARNEY","M"]
["BARNY","M"]
["BARON","M"]
["BARR","E"]
["BARRAN","E"]
["BARRETTA","E"]
["BARRINGTON","M"]
["BARRY","M"]
["BART","M"]
["BARTH","M"]
["BARTHOLEMEW","M"]
["BARTO","M"]
["BARTON","M"]
["BARUCH","M"]
["BARY","M"]
["BASH","M"]
["BASIL","M"]
["BAST","M"]
["BASTIEN","M"]
["BAXTER","M"]
["BAYARD","M"]
["BAYEN","E"]
["BAYLEE","F"]
["BAYO","M"]
["BAZYLI","M"]
["BEA","F"]
["BEATA","F"]
["BEATE","M"]
["BEATRICE","F"]
["BEATRIZ","F"]
["BEAU","M"]
["BEAUREGARD","M"]
["BEBE","F"]
["BEBHIN","F"]
["BECCA","F"]
["BECK","M"]
["BECKA","F"]
["BECKY","F"]
["BEDROS","M"]
["BEL","E"]
["BELA","F"]
["BELAY","M"]
["BELDEN","M"]
["BELICIA","F"]
["BELINDA","F"]
["BELITA","F"]
["BELL","E"]
["BELLA","F"]
["BELLE","F"]
["BELLINI","F"]
["BELVA","F"]
["BEN","M"]
["BENA","F"]
["BENARD","M"]
["BENDEK","M"]
["BENECIA","F"]
["BENEDICT","M"]
["BENEN","E"]
["BENITA","F"]
["BENJAMIN","M"]
["BENJY","M"]
["BENNETT","M"]
["BENNY","M"]
["BENSON","M"]
["BERDINE","F"]
["BERENICE","F"]
["BERG","M"]
["BERIT","F"]
["BERKE","M"]
["BERN","E"]
["BERNADETTE","F"]
["BERNADINE","F"]
["BERNARD","M"]
["BERNE","E"]
["BERNICE","F"]
["BERNIE","M"]
["BERNY","M"]
["BERT","M"]
["BERTHA","F"]
["BERTILLE","F"]
["BERYL","F"]
["BESS","F"]
["BESSIE","F"]
["BETH","F"]
["BETHAN","F"]
["BETHANY","F"]
["BETSY","F"]
["BETTE","F"]
["BETTY","F"]
["BEULAH","F"]
["BEVAN","M"]
["BEVERLY","F"]
["BEVIS","M"]
["BEYLA","F"]
["BIAN","F"]
["BIANA","F"]
["BIANCA","F"]
["BIBIANA","F"]
["BIBIANE","F"]
["BIDELIA","F"]
["BIJAN","M"]
["BIKITA","F"]
["BILEN","M"]
["BILL","M"]
["BILLY","M"]
["BIN","M"]
["BINA","F"]
["BING","M"]
["BINGHAM","M"]
["BIRCH","M"]
["BISBEE","M"]
["BISHOP","M"]
["BITON","M"]
["BJORN","M"]
["BLADE","M"]
["BLAINE","E"]
["BLAIR","E"]
["BLAKE","M"]
["BLANCHE","F"]
["BLAZE","E"]
["BLENDA","F"]
["BLINDA","F"]
["BLISS","F"]
["BLITHE","F"]
["BLODWYN","F"]
["BLONDELLE","F"]
["BLOSSOM","F"]
["BLUM","E"]
["BLUMA","F"]
["BLYTHE","F"]
["BO","E"]
["BOAZ","M"]
["BOB","M"]
["BONA","F"]
["BONAVENTURE","E"]
["BOND","M"]
["BONIFACY","M"]
["BONITA","F"]
["BONNIE","F"]
["BONO","M"]
["BOONE","M"]
["BOOTH","M"]
["BORIS","M"]
["BORKA","M"]
["BOWEN","M"]
["BOWIE","M"]
["BOYD","M"]
["BRACHA","F"]
["BRAD","M"]
["BRADEN","M"]
["BRADFORD","M"]
["BRADLEY","M"]
["BRAEDEN","M"]
["BRAIMA","F"]
["BRAN","M"]
["BRAND","M"]
["BRANDEE","F"]
["BRANDIE","F"]
["BRANDON","M"]
["BRANT","M"]
["BRAYDEN","E"]
["BRAZIL","E"]
["BREANNA","F"]
["BRECKIN","E"]
["BREDE","E"]
["BREE","F"]
["BREIN","E"]
["BRENCIS","E"]
["BREND","E"]
["BRENDA","F"]
["BRENDAN","M"]
["BRENNA","F"]
["BRENNAN","M"]
["BRENT","M"]
["BRETT","M"]
["BREWSTER","M"]
["BRIAN","M"]
["BRIANA","F"]
["BRIANNA","F"]
["BRIANNE","F"]
["BRIAR","E"]
["BRICE","M"]
["BRICK","M"]
["BRIDGET","F"]
["BRIDGIT","F"]
["BRIE","F"]
["BRIELLE","F"]
["BRIER","M"]
["BRIGHAM","M"]
["BRIGHTON","E"]
["BRIGID","F"]
["BRIGIT","F"]
["BRIGITTE","F"]
["BRILANE","E"]
["BRILLIANT","E"]
["BRINA","F"]
["BRINLEY","M"]
["BRINLY","E"]
["BRIT","E"]
["BRITA","F"]
["BRITAIN","E"]
["BRITANNIA","F"]
["BRITANY","F"]
["BRITTANIA","F"]
["BRITTANY","F"]
["BRITTNEE","F"]
["BROCK","M"]
["BRODY","M"]
["BRON","E"]
["BRONE","E"]
["BRONSON","M"]
["BRONWEN","F"]
["BROOKE","E"]
["BROOKLYN","E"]
["BROOKS","M"]
["BRUCE","M"]
["BRUNO","M"]
["BRYAN","M"]
["BRYANNE","F"]
["BRYANT","M"]
["BRYCE","E"]
["BRYGID","F"]
["BRYNN","E"]
["BRYONY","F"]
["BRYTON","M"]
["BUCK","M"]
["BUD","M"]
["BUDDY","M"]
["BUFFY","F"]
["BUNNY","F"]
["BURDETTE","F"]
["BURIAN","M"]
["BURKE","M"]
["BURT","M"]
["BURTON","M"]
["BUTTERFLY","F"]
["BUZZ","M"]
["BYRD","M"]
["BYRON","M"]
["CADE","E"]
["CADEE","F"]
["CADENCE","F"]
["CADY","F"]
["CAEL","M"]
["CAELAN","F"]
["CAESAR","M"]
["CAI","F"]
["CAILEAN","F"]
["CAIMILE","F"]
["CAIN","E"]
["CAINE","E"]
["CAIRBRE","M"]
["CAIRO","E"]
["CAIS","E"]
["CAITLIN","F"]
["CAITLYN","F"]
["CAL","E"]
["CALA","F"]
["CALAIS","F"]
["CALANDRA","F"]
["CALANTHA","F"]
["CALDER","M"]
["CALE","M"]
["CALEB","M"]
["CALEY","E"]
["CALHOUN","M"]
["CALIDA","F"]
["CALISTA","F"]
["CALIX","M"]
["CALIXTE","F"]
["CALLA","F"]
["CALLIA","F"]
["CALLIOPE","F"]
["CALLISTA","F"]
["CALLUM","M"]
["CALUM","M"]
["CALVIN","M"]
["CALVINE","F"]
["CAM","E"]
["CAMBRIA","F"]
["CAMDEN","M"]
["CAMDYN","F"]
["CAMEO","E"]
["CAMERON","E"]
["CAMILA","F"]
["CAMILLA","F"]
["CAMILLE","F"]
["CAMLIN","F"]
["CAMRYN","E"]
["CANA","F"]
["CANDACE","F"]
["CANDICE","F"]
["CANDIDA","F"]
["CANDIDE","F"]
["CANDIE","F"]
["CANDY","F"]
["CAPRICE","F"]
["CARA","F"]
["CARALEE","F"]
["CARESSE","F"]
["CARHA","F"]
["CARINA","F"]
["CARISSA","F"]
["CARL","M"]
["CARLA","F"]
["CARLEN","E"]
["CARLIN","E"]
["CARLOS","M"]
["CARLOTA","F"]
["CARLOTTA","F"]
["CARLTON","M"]
["CARLY","F"]
["CARMEL","F"]
["CARMELA","F"]
["CARMELITA","F"]
["CARMEN","F"]
["CARMINE","M"]
["CARNIG","M"]
["CAROL","F"]
["CAROLENA","F"]
["CAROLINE","F"]
["CAROLOS","M"]
["CAROLYN","F"]
["CARON","F"]
["CAROUN","F"]
["CARR","M"]
["CARRICK","M"]
["CARRIE","F"]
["CARRIEANN","F"]
["CARSON","M"]
["CARSYN","M"]
["CARTER","E"]
["CARVER","M"]
["CARY","E"]
["CASCATA","F"]
["CASEY","E"]
["CASHLIN","F"]
["CASIMIR","M"]
["CASONDRA","F"]
["CASPAR","M"]
["CASPER","M"]
["CASSANDRA","F"]
["CASSIA","F"]
["CASSIDY","E"]
["CASSIE","F"]
["CASSIUS","M"]
["CASTEL","E"]
["CATALIN","F"]
["CATHERINE","F"]
["CATHY","F"]
["CATRIN","F"]
["CAYLA","F"]
["CEANA","F"]
["CEARO","M"]
["CECE","F"]
["CECIL","M"]
["CECILE","F"]
["CECILIA","F"]
["CECILY","F"]
["CEDRIC","M"]
["CELESTE","F"]
["CELESTYN","F"]
["CELIA","F"]
["CELINA","F"]
["CELINE","F"]
["CERISE","F"]
["CESAR","M"]
["CHAD","M"]
["CHAELA","F"]
["CHAELI","F"]
["CHAILYN","F"]
["CHAIM","M"]
["CHALSIE","F"]
["CHANA","F"]
["CHANCE","M"]
["CHANCELLOR","M"]
["CHANDLER","M"]
["CHANDRA","F"]
["CHANNON","E"]
["CHANTAL","F"]
["CHANTEL","F"]
["CHANTON","F"]
["CHARIS","F"]
["CHARISSE","F"]
["CHARITY","F"]
["CHARLA","F"]
["CHARLEE","M"]
["CHARLEEN","F"]
["CHARLEIGH","M"]
["CHARLENE","F"]
["CHARLES","M"]
["CHARLOT","F"]
["CHARLOTTE","F"]
["CHARMAINE","F"]
["CHARO","F"]
["CHARS","M"]
["CHAS","M"]
["CHASE","M"]
["CHASTITY","F"]
["CHAUNCEY","M"]
["CHAVA","F"]
["CHAVI","F"]
["CHAYLSE","F"]
["CHAYTON","M"]
["CHECHE","F"]
["CHELSA","F"]
["CHELSEA","F"]
["CHELSI","F"]
["CHELSIA","F"]
["CHEN","E"]
["CHENEY","M"]
["CHENOA","F"]
["CHER","F"]
["CHERI","F"]
["CHERIE","F"]
["CHERLIN","F"]
["CHERRY","F"]
["CHERYL","F"]
["CHESMU","M"]
["CHESNA","F"]
["CHESSA","F"]
["CHESTER","M"]
["CHET","M"]
["CHEYENNE","F"]
["CHEYNE","F"]
["CHEZARINA","F"]
["CHICK","M"]
["CHICO","M"]
["CHIKA","F"]
["CHILL","M"]
["CHILTON","M"]
["CHIMELU","M"]
["CHINA","F"]
["CHIP","M"]
["CHIPO","F"]
["CHLOE","F"]
["CHLORIS","F"]
["CHOLENA","F"]
["CHRIS","E"]
["CHRISSY","F"]
["CHRISTA","F"]
["CHRISTIAN","E"]
["CHRISTIANA","F"]
["CHRISTINA","F"]
["CHRISTINE","F"]
["CHRISTOPHER","M"]
["CHRISTY","M"]
["CHUCK","M"]
["CHUMANI","F"]
["CHYNA","F"]
["CHYNNA","F"]
["CIAN","M"]
["CIANNA","F"]
["CIARA","F"]
["CICELY","F"]
["CICERO","M"]
["CICILY","F"]
["CID","M"]
["CIEL","F"]
["CILI","F"]
["CILLIAN","M"]
["CINDY","F"]
["CINNAMON","F"]
["CIRA","F"]
["CIRILA","F"]
["CIRO","M"]
["CIROCCO","M"]
["CISSY","F"]
["CLAIRE","F"]
["CLARA","F"]
["CLARAL","F"]
["CLARE","F"]
["CLARENCE","M"]
["CLARISSA","F"]
["CLARK","M"]
["CLARKE","M"]
["CLAUDE","M"]
["CLAUDIA","F"]
["CLAY","M"]
["CLAYLAND","M"]
["CLAYTON","M"]
["CLEA","F"]
["CLEANTHA","F"]
["CLEATUS","M"]
["CLEAVANT","M"]
["CLEAVE","M"]
["CLEAVON","M"]
["CLEM","M"]
["CLEMENS","M"]
["CLEMENT","M"]
["CLEMENTINE","F"]
["CLEO","F"]
["CLETA","F"]
["CLEVELAND","M"]
["CLIFF","M"]
["CLIFFORD","M"]
["CLIFTON","M"]
["CLINT","M"]
["CLINTON","M"]
["CLIO","F"]
["CLITUS","M"]
["CLIVE","M"]
["CLODIA","F"]
["CLORIS","F"]
["CLOVE","M"]
["CLOVER","F"]
["CLOVIS","M"]
["CLYDE","M"]
["COCHETA","F"]
["CODY","M"]
["COEN","M"]
["COLE","M"]
["COLETTE","F"]
["COLIGNY","F"]
["COLIN","M"]
["COLISTA","F"]
["COLLEEN","F"]
["COLLICE","F"]
["COLLIN","M"]
["COLM","M"]
["COLMAN","M"]
["COLTON","M"]
["COLUM","M"]
["COLUMBIA","F"]
["COMFORT","F"]
["CONAN","M"]
["CONARY","E"]
["CONLAN","M"]
["CONLEY","M"]
["CONNER","M"]
["CONNIE","E"]
["CONNLEY","M"]
["CONNOR","M"]
["CONOR","M"]
["CONRAD","M"]
["CONROY","M"]
["CONSTANCE","F"]
["CONSTANTINE","M"]
["CONSUELA","F"]
["CONSUELO","F"]
["CONTENT","F"]
["CONWAY","M"]
["CONYERS","M"]
["COOPER","M"]
["CORA","F"]
["CORAL","F"]
["CORALIA","F"]
["CORALIE","F"]
["CORBIN","M"]
["CORBY","E"]
["CORDELIA","F"]
["CORDELL","M"]
["CORENTINE","F"]
["COREY","E"]
["CORIN","F"]
["CORINA","F"]
["CORINE","F"]
["CORINNA","F"]
["CORINNE","F"]
["CORLISS","F"]
["CORNELIA","F"]
["CORNELIUS","M"]
["CORNELL","M"]
["CORT","M"]
["CORY","E"]
["COSETTE","F"]
["COSIMA","F"]
["COSMO","M"]
["COTY","E"]
["COURTNEY","E"]
["COY","F"]
["COYE","F"]
["CRAIG","M"]
["CREDA","F"]
["CREIGHTON","M"]
["CREOLA","E"]
["CRESCENT","E"]
["CRETE","F"]
["CREVAN","M"]
["CRISPIN","M"]
["CRISTY","E"]
["CRYSTAL","F"]
["CULLEN","M"]
["CURRY","M"]
["CURT","M"]
["CURTIS","M"]
["CUTHBERT","M"]
["CUTLER","M"]
["CUTTER","M"]
["CY","M"]
["CYBELE","F"]
["CYBIL","F"]
["CYBILL","F"]
["CYD","E"]
["CYMA","F"]
["CYNDI","F"]
["CYNTHIA","F"]
["CYRAH","F"]
["CYRIL","M"]
["CYRUS","E"]
["DA-XIA","F"]
["DACEY","E"]
["DAFYDD","M"]
["DAGAN","E"]
["DAGMAR","M"]
["DAGOBERT","M"]
["DAHLIA","F"]
["DAISY","F"]
["DAKOTA","E"]
["DALE","M"]
["DALIA","F"]
["DALILA","F"]
["DALIT","M"]
["DALLAS","M"]
["DALLIN","E"]
["DALLON","E"]
["DALTON","M"]
["DALVA","F"]
["DAMIA","F"]
["DAMIAN","M"]
["DAMITA","F"]
["DAMON","M"]
["DAN","M"]
["DANA","F"]
["DANAE","F"]
["DANE","M"]
["DANI","F"]
["DANICA","F"]
["DANIEL","M"]
["DANIELA","F"]
["DANIELLE","F"]
["DANIKA","F"]
["DANIL","M"]
["DANNIELL","M"]
["DANNON","M"]
["DANNY","M"]
["DANTE","E"]
["DANTON","M"]
["DANYL","M"]
["DAPHNE","F"]
["DARA","F"]
["DARAY","E"]
["DARBY","E"]
["DARCIE","F"]
["DARCY","E"]
["DARD","M"]
["DAREH","M"]
["DARIA","F"]
["DARIAN","M"]
["DARIN","M"]
["DARIO","M"]
["DARLA","F"]
["DARLENE","F"]
["DARLITA","F"]
["DARNELL","M"]
["DARRELL","M"]
["DARREN","M"]
["DARRIN","M"]
["DARRION","M"]
["DARRIUS","M"]
["DARRYL","M"]
["DARSHAN","M"]
["DARWIN","M"]
["DARYL","M"]
["DASAN","M"]
["DASHA","F"]
["DAVAN","E"]
["DAVE","M"]
["DAVID","M"]
["DAVIDA","F"]
["DAVIN","E"]
["DAVINA","F"]
["DAVIS","M"]
["DAVU","M"]
["DAW","F"]
["DAWN","F"]
["DAWSON","M"]
["DAYTON","E"]
["DEA","F"]
["DEAN","M"]
["DEANA","F"]
["DEANDRA","F"]
["DEANNA","F"]
["DEANNE","F"]
["DEBBIE","F"]
["DEBBY","F"]
["DEBORAH","F"]
["DEBRA","F"]
["DEENA","F"]
["DEIDRA","F"]
["DEIONDRE","E"]
["DEIRDRA","F"]
["DEIRDRE","F"]
["DEITER","M"]
["DEJAH","E"]
["DEKA","E"]
["DEL","E"]
["DELAINE","E"]
["DELANEY","E"]
["DELBERT","M"]
["DELFINA","F"]
["DELIA","F"]
["DELILA","F"]
["DELILAH","F"]
["DELIZ","F"]
["DELLA","F"]
["DELLING","E"]
["DELORES","F"]
["DELPHINE","F"]
["DELTA","F"]
["DELU","F"]
["DEMBE","E"]
["DEMETRIA","F"]
["DEMETRIUS","E"]
["DEMI","F"]
["DEMITRIUS","M"]
["DEMPSTER","M"]
["DENA","F"]
["DENALI","F"]
["DENIS","M"]
["DENISE","F"]
["DENNA","F"]
["DENNIS","M"]
["DENVER","E"]
["DEO","M"]
["DEON","E"]
["DERBY","E"]
["DEREK","M"]
["DEREX","M"]
["DERICA","F"]
["DERMOT","M"]
["DERON","M"]
["DERORA","F"]
["DERRICK","M"]
["DERRON","M"]
["DERRY","E"]
["DES","E"]
["DESANA","F"]
["DESDEMONA","F"]
["DESI","E"]
["DESIDERIO","M"]
["DESIREE","F"]
["DESMOND","M"]
["DESSA","F"]
["DEVA","F"]
["DEVAKI","E"]
["DEVEN","E"]
["DEVI","F"]
["DEVIN","E"]
["DEVLIN","M"]
["DEVON","E"]
["DEVORAH","F"]
["DEVORIT","F"]
["DEWEI","M"]
["DEWEY","M"]
["DEWITT","M"]
["DEXTER","M"]
["DEXTRA","F"]
["DEZSO","M"]
["DIALLO","M"]
["DIAMOND","E"]
["DIAN","E"]
["DIANA","F"]
["DIANE","F"]
["DIANNE","F"]
["DIANTHA","F"]
["DIANTHE","F"]
["DIATA","F"]
["DICK","M"]
["DIDIER","E"]
["DIDINA","F"]
["DIDRIKA","F"]
["DIEDRICK","M"]
["DIEGO","M"]
["DIERDRA","F"]
["DIERDRE","F"]
["DILLAN","M"]
["DILLIAN","E"]
["DILLON","M"]
["DIMA","M"]
["DINA","F"]
["DINAH","F"]
["DINH","M"]
["DINO","M"]
["DINOS","M"]
["DION","E"]
["DIONNE","F"]
["DIONYSIUS","M"]
["DIONYSUS","M"]
["DIOR","E"]
["DIRK","M"]
["DIXIE","F"]
["DIXON","M"]
["DMITRI","M"]
["DOANE","E"]
["DOBRY","M"]
["DOCTOR","M"]
["DODA","F"]
["DOI","E"]
["DOLAN","M"]
["DOLLY","F"]
["DOLORES","F"]
["DOLPH","M"]
["DOM","M"]
["DOMANI","E"]
["DOMINIC","M"]
["DOMINICK","M"]
["DOMINIQUE","F"]
["DOMINY","M"]
["DON","M"]
["DONAGH","M"]
["DONAHI","M"]
["DONAL","M"]
["DONALD","M"]
["DONAT","M"]
["DONATO","M"]
["DONELLE","F"]
["DONNA","F"]
["DONNEL","M"]
["DONNICA","F"]
["DONNY","M"]
["DONOVAN","M"]
["DOOLEY","M"]
["DORA","F"]
["DORCAS","F"]
["DORE","F"]
["DORI","F"]
["DORIA","F"]
["DORIAN","F"]
["DORIE","F"]
["DORINDA","F"]
["DORIS","F"]
["DORIT","F"]
["DORJAN","M"]
["DOROTHEA","F"]
["DOROTHY","F"]
["DORSET","F"]
["DORSEY","E"]
["DORY","F"]
["DOT","F"]
["DOTTY","F"]
["DOUG","M"]
["DOUGAL","M"]
["DOUGLAS","M"]
["DOUGLASS","M"]
["DOYLE","M"]
["DOYT","M"]
["DRAKE","M"]
["DREAMA","F"]
["DREW","E"]
["DRU","E"]
["DUANE","M"]
["DUC","M"]
["DUDLEY","M"]
["DUENA","F"]
["DUFF","E"]
["DUGAN","M"]
["DUKA","M"]
["DUKE","M"]
["DULCE","F"]
["DULCEA","F"]
["DULCINA","F"]
["DULCINEA","F"]
["DUMI","E"]
["DUNCAN","M"]
["DUNIXI","E"]
["DUNJA","F"]
["DUNN","M"]
["DUNNE","E"]
["DUSCHA","E"]
["DUSTIN","M"]
["DUSTY","E"]
["DUTCH","M"]
["DWAYNE","M"]
["DWIGHT","M"]
["DYAN","F"]
["DYANI","F"]
["DYANNE","F"]
["DYLAN","E"]
["DYLLIS","F"]
["DYRE","E"]
["DYSIS","F"]
["EADOIN","M"]
["EAMON","M"]
["EARL","M"]
["EARLENE","F"]
["EARNEST","M"]
["EASTER","F"]
["EAVAN","F"]
["EBONY","F"]
["ECHO","E"]
["ED","M"]
["EDA-MAE","F"]
["EDA-MAME","F"]
["EDALENE","F"]
["EDALINE","F"]
["EDAMA-MAE","F"]
["EDAN","M"]
["EDANA","F"]
["EDDA","F"]
["EDDIE","M"]
["EDDY","M"]
["EDELINE","F"]
["EDEN","E"]
["EDENA","F"]
["EDGAR","M"]
["EDIE","F"]
["EDISON","M"]
["EDITA","F"]
["EDITH","F"]
["EDMUND","M"]
["EDNA","F"]
["EDRIC","M"]
["EDWARD","M"]
["EDWARDO","M"]
["EDWIN","M"]
["EDWINA","F"]
["EDYTHE","F"]
["EFFIE","F"]
["EFRAT","M"]
["EFREM","M"]
["EGAN","M"]
["EGIL","M"]
["EILEEN","F"]
["EILIS","F"]
["EITAN","M"]
["ELA","F"]
["ELAINE","F"]
["ELAN","E"]
["ELANA","F"]
["ELANI","F"]
["ELATA","F"]
["ELDA","F"]
["ELDEN","M"]
["ELDON","M"]
["ELDORA","F"]
["ELEANOR","F"]
["ELEAZAR","M"]
["ELECTRA","F"]
["ELENA","F"]
["ELEPHTERIA","F"]
["ELGIN","E"]
["ELI","M"]
["ELIA","F"]
["ELIAS","M"]
["ELIE","F"]
["ELIJAH","M"]
["ELIN","F"]
["ELIORA","F"]
["ELIOT","M"]
["ELISABETH","F"]
["ELISE","F"]
["ELISHA","M"]
["ELITA","F"]
["ELIZA","F"]
["ELIZABETH","F"]
["ELJAH","M"]
["ELKAN","M"]
["ELKE","F"]
["ELLA","F"]
["ELLARD","M"]
["ELLE","F"]
["ELLEMA","F"]
["ELLEN","F"]
["ELLERY","E"]
["ELLIE","F"]
["ELLIOT","M"]
["ELLIOTT","M"]
["ELLIS","E"]
["ELLISON","M"]
["ELMO","M"]
["ELOISE","F"]
["ELPIDA","F"]
["ELROY","M"]
["ELSA","F"]
["ELSIE","F"]
["ELSPETH","F"]
["ELSU","M"]
["ELTON","M"]
["ELU","E"]
["ELVIN","M"]
["ELVINA","F"]
["ELVIRA","F"]
["ELVIS","M"]
["ELY","M"]
["ELYSE","F"]
["ELYSIA","F"]
["EMANUEL","M"]
["EMANUELE","F"]
["EMELE","F"]
["EMERA","F"]
["EMERALD","F"]
["EMERY","M"]
["EMIL","M"]
["EMILIA","F"]
["EMILIE","F"]
["EMILIO","M"]
["EMILY","F"]
["EMLYN","E"]
["EMMA","F"]
["EMMANUEL","M"]
["EMMET","M"]
["EMMETT","M"]
["EMMLY","F"]
["EMORY","M"]
["ENA","F"]
["ENID","F"]
["ENNIS","E"]
["ENOS","M"]
["ENRICO","M"]
["ENRIQUE","M"]
["EOLANDE","F"]
["EPHRAIM","M"]
["EPIFANIO","M"]
["ER","M"]
["ERASMUS","M"]
["ERI","M"]
["ERIC","M"]
["ERICA","F"]
["ERIK","M"]
["ERIKA","F"]
["ERIMENTHA","F"]
["ERIN","F"]
["ERIS","F"]
["ERLAND","M"]
["ERMA","F"]
["ERME","F"]
["ERMIN","M"]
["ERNA","F"]
["ERNEST","M"]
["ERNIE","M"]
["ERNO","M"]
["ERON","M"]
["EROS","M"]
["ERRIN","F"]
["ERROL","M"]
["ERV","M"]
["ERVIN","M"]
["ERWIN","M"]
["ERYK","M"]
["ESBEN","M"]
["ESHE","F"]
["ESMA","F"]
["ESME","F"]
["ESMERELDA","F"]
["ESTEBAN","M"]
["ESTELLE","F"]
["ESTER","F"]
["ESTHER","F"]
["ESTRALITA","F"]
["ETAN","M"]
["ETANA","F"]
["ETERNITY","F"]
["ETHAN","M"]
["ETHEL","F"]
["ETHELDA","F"]
["ETTA","F"]
["EUDORA","F"]
["EUGENE","M"]
["EULALIA","F"]
["EULALIE","F"]
["EUPEMIA","F"]
["EUPHEMIA","F"]
["EURIDICE","F"]
["EURYDICE","F"]
["EVA","F"]
["EVADNE","F"]
["EVAN","M"]
["EVANE","M"]
["EVANGELIA","F"]
["EVANGELINE","F"]
["EVANIA","F"]
["EVANTHE","F"]
["EVE","F"]
["EVELIA","F"]
["EVELIEN","F"]
["EVELINA","F"]
["EVELYN","F"]
["EVERETT","M"]
["EVETTE","F"]
["EVIE","F"]
["EVITA","F"]
["EVONNE","F"]
["EWA","F"]
["EWAN","M"]
["EYAL","M"]
["EYDIE","F"]
["EZEKIEL","M"]
["EZRA","M"]

{"sheet":"Countries","index":2,"n_rows":250,"n_cols":4,"rows_kept":250,"cut":false,"hidden":false,"merged":[]}
["Country Name","Continent Name","Source:","https://raw.github.com/wikimedia/limn-data/master/geo/country-codes.csv"]
["Afghanistan","Asia"]
["Åland","Europe"]
["Albania","Europe"]
["Algeria","Africa"]
["American Samoa","Oceania"]
["Andorra","Europe"]
["Angola","Africa"]
["Anguilla","North America"]
["Antarctica","Antarctica"]
["Antigua and Barbuda","North America"]
["Argentina","South America"]
["Armenia","Asia"]
["Aruba","North America"]
["Australia","Oceania"]
["Austria","Europe"]
["Azerbaijan","Asia"]
["Bahamas","North America"]
["Bahrain","Asia"]
["Bangladesh","Asia"]
["Barbados","North America"]
["Belarus","Europe"]
["Belgium","Europe"]
["Belize","North America"]
["Benin","Africa"]
["Bermuda","North America"]
["Bhutan","Asia"]
["Bolivia","South America"]
["Bonaire, Sint Eustatiusand Saba","North America"]
["Bosnia and Herzegovina","Europe"]
["Botswana","Africa"]
["Bouvet Island","Antarctica"]
["Brazil","South America"]
["British Indian Ocean Territory","Asia"]
["Brunei Darussalam","Asia"]
["Bulgaria","Europe"]
["Burkina Faso","Africa"]
["Burundi","Africa"]
["Cambodia","Asia"]
["Cameroon","Africa"]
["Canada","North America"]
["Cape Verde","Africa"]
["Cayman Islands","North America"]
["Central African Republic","Africa"]
["Chad","Africa"]
["Chile","South America"]
["China","Asia"]
["Christmas Island","Asia"]
["Cocos (Keeling) Islands","Asia"]
["Colombia","South America"]
["Comoros","Africa"]
["Congo (Brazzaville)","Africa"]
["Congo (Kinshasa)","Africa"]
["Cook Islands","Oceania"]
["Costa Rica","North America"]
["Côte d'Ivoire","Africa"]
["Croatia","Europe"]
["Cuba","North America"]
["Curaçao","North America"]
["Cyprus","Asia"]
["Czech Republic","Europe"]
["Denmark","Europe"]
["Djibouti","Africa"]
["Dominica","North America"]
["Dominican Republic","North America"]
["Ecuador","South America"]
["Egypt","Africa"]
["El Salvador","North America"]
["Equatorial Guinea","Africa"]
["Eritrea","Africa"]
["Estonia","Europe"]
["Ethiopia","Africa"]
["Falkland Islands","South America"]
["Faroe Islands","Europe"]
["Fiji","Oceania"]
["Finland","Europe"]
["France","Europe"]
["French Guiana","South America"]
["French Polynesia","Oceania"]
["French Southern Lands","Antarctica"]
["Gabon","Africa"]
["Gambia","Africa"]
["Georgia","Asia"]
["Germany","Europe"]
["Ghana","Africa"]
["Gibraltar","Europe"]
["Greece","Europe"]
["Greenland","North America"]
["Grenada","North America"]
["Guadeloupe","North America"]
["Guam","Oceania"]
["Guatemala","North America"]
["Guernsey","Europe"]
["Guinea","Africa"]
["Guinea-Bissau","Africa"]
["Guyana","South America"]
["Haiti","North America"]
["Heard and McDonald Islands","Antarctica"]
["Honduras","North America"]
["Hong Kong","Asia"]
["Hungary","Europe"]
["Iceland","Europe"]
["India","Asia"]
["Indonesia","Asia"]
["Iran","Asia"]
["Iraq","Asia"]
["Ireland","Europe"]
["Isle of Man","Europe"]
["Israel","Asia"]
["Italy","Europe"]
["Jamaica","North America"]
["Japan","Asia"]
["Jersey","Europe"]
["Jordan","Asia"]
["Kazakhstan","Asia"]
["Kenya","Africa"]
["Kiribati","Oceania"]
["Korea, North","Asia"]
["Korea, South","Asia"]
["Kuwait","Asia"]
["Kyrgyzstan","Asia"]
["Laos","Asia"]
["Latvia","Europe"]
["Lebanon","Asia"]
["Lesotho","Africa"]
["Liberia","Africa"]
["Libya","Africa"]
["Liechtenstein","Europe"]
["Lithuania","Europe"]
["Luxembourg","Europe"]
["Macau","Asia"]
["Macedonia","Europe"]
["Madagascar","Africa"]
["Malawi","Africa"]
["Malaysia","Asia"]
["Maldives","Asia"]
["Mali","Africa"]
["Malta","Europe"]
["Marshall Islands","Oceania"]
["Martinique","North America"]
["Mauritania","Africa"]
["Mauritius","Africa"]
["Mayotte","Africa"]
["Mexico","North America"]
["Micronesia","Oceania"]
["Moldova","Europe"]
["Monaco","Europe"]
["Mongolia","Asia"]
["Montenegro","Europe"]
["Montserrat","North America"]
["Morocco","Africa"]
["Mozambique","Africa"]
["Myanmar","Asia"]
["Namibia","Africa"]
["Nauru","Oceania"]
["Nepal","Asia"]
["Netherlands","Europe"]
["New Caledonia","Oceania"]
["New Zealand","Oceania"]
["Nicaragua","North America"]
["Niger","Africa"]
["Nigeria","Africa"]
["Niue","Oceania"]
["Norfolk Island","Oceania"]
["Northern Mariana Islands","Oceania"]
["Norway","Europe"]
["Oman","Asia"]
["Pakistan","Asia"]
["Palau","Oceania"]
["Palestine","Asia"]
["Panama","North America"]
["Papua New Guinea","Oceania"]
["Paraguay","South America"]
["Peru","South America"]
["Philippines","Asia"]
["Pitcairn","Oceania"]
["Poland","Europe"]
["Portugal","Europe"]
["Puerto Rico","North America"]
["Qatar","Asia"]
["Reunion","Africa"]
["Romania","Europe"]
["Russian Federation","Europe"]
["Rwanda","Africa"]
["Saint Barthélemy","North America"]
["Saint Helena","Africa"]
["Saint Kitts and Nevis","North America"]
["Saint Lucia","North America"]
["Saint Martin (French part)","North America"]
["Saint Pierre and Miquelon","North America"]
["Saint Vincent and the Grenadines","North America"]
["Samoa","Oceania"]
["San Marino","Europe"]
["Sao Tome and Principe","Africa"]
["Saudi Arabia","Asia"]
["Senegal","Africa"]
["Serbia","Europe"]
["Seychelles","Africa"]
["Sierra Leone","Africa"]
["Singapore","Asia"]
["Sint Maarten","North America"]
["Slovakia","Europe"]
["Slovenia","Europe"]
["Solomon Islands","Oceania"]
["Somalia","Africa"]
["South Africa","Africa"]
["South Georgia and South Sandwich Islands","Antarctica"]
["South Sudan","Africa"]
["Spain","Europe"]
["Sri Lanka","Asia"]
["Sudan","Africa"]
["Suriname","South America"]
["Svalbard and Jan Mayen Islands","Europe"]
["Swaziland","Africa"]
["Sweden","Europe"]
["Switzerland","Europe"]
["Syria","Asia"]
["Taiwan","Asia"]
["Tajikistan","Asia"]
["Tanzania","Africa"]
["Thailand","Asia"]
["Timor-Leste","Asia"]
["Togo","Africa"]
["Tokelau","Oceania"]
["Tonga","Oceania"]
["Trinidad and Tobago","North America"]
["Tunisia","Africa"]
["Turkey","Asia"]
["Turkmenistan","Asia"]
["Turks and Caicos Islands","North America"]
["Tuvalu","Oceania"]
["Uganda","Africa"]
["Ukraine","Europe"]
["United Arab Emirates","Asia"]
["United Kingdom","Europe"]
["United States Minor Outlying Islands","Oceania"]
["United States of America","North America"]
["Uruguay","South America"]
["Uzbekistan","Asia"]
["Vanuatu","Oceania"]
["Vatican City","Europe"]
["Venezuela","South America"]
["Vietnam","Asia"]
["Virgin Islands, British","North America"]
["Virgin Islands, U.S.","North America"]
["Wallis and Futuna Islands","Oceania"]
["Western Sahara","Africa"]
["Yemen","Asia"]
["Zambia","Africa"]
["Zimbabwe","Africa"]

{"sheet":"Gen_Corr_Target_Corr","index":3,"n_rows":19,"n_cols":7,"rows_kept":19,"cut":false,"hidden":false,"merged":[]}
[1,0.8,0.4,0]
[{"$f":"INDEX($A$1:$D$4,COLUMN(),ROW())","v":0.8},1,0.3,-0.2]
[{"$f":"INDEX($A$1:$D$4,COLUMN(),ROW())","v":0.4},{"$f":"INDEX($A$1:$D$4,COLUMN(),ROW())","v":0.3},1,0.1]
[{"$f":"INDEX($A$1:$D$4,COLUMN(),ROW())","v":0},{"$f":"INDEX($A$1:$D$4,COLUMN(),ROW())","v":-0.2},{"$f":"INDEX($A$1:$D$4,COLUMN(),ROW())","v":0.1},1]
[]
["Result correlation"]
[{"$f":"CORREL(INDEX(Gen_Corr_Output_Series!$A$1:$D$20,,ROW()-6),INDEX(Gen_Corr_Output_Series!$A$1:$D$20,,COLUMN()))","v":1.0000000000000002},{"$f":"CORREL(INDEX(Gen_Corr_Output_Series!$A$1:$D$20,,ROW()-6),INDEX(Gen_Corr_Output_Series!$A$1:$D$20,,COLUMN()))","v":0.87020570839731481},{"$f":"CORREL(INDEX(Gen_Corr_Output_Series!$A$1:$D$20,,ROW()-6),INDEX(Gen_Corr_Output_Series!$A$1:$D$20,,COLUMN()))","v":0.45270219248532478},{"$f":"CORREL(INDEX(Gen_Corr_Output_Series!$A$1:$D$20,,ROW()-6),INDEX(Gen_Corr_Output_Series!$A$1:$D$20,,COLUMN()))","v":-6.6959648464878258E-2}]
[{"$f":"CORREL(INDEX(Gen_Corr_Output_Series!$A$1:$D$20,,ROW()-6),INDEX(Gen_Corr_Output_Series!$A$1:$D$20,,COLUMN()))","v":0.87020570839731481},{"$f":"CORREL(INDEX(Gen_Corr_Output_Series!$A$1:$D$20,,ROW()-6),INDEX(Gen_Corr_Output_Series!$A$1:$D$20,,COLUMN()))","v":1},{"$f":"CORREL(INDEX(Gen_Corr_Output_Series!$A$1:$D$20,,ROW()-6),INDEX(Gen_Corr_Output_Series!$A$1:$D$20,,COLUMN()))","v":0.34922549028156108},{"$f":"CORREL(INDEX(Gen_Corr_Output_Series!$A$1:$D$20,,ROW()-6),INDEX(Gen_Corr_Output_Series!$A$1:$D$20,,COLUMN()))","v":-0.13192431499757915}]
[{"$f":"CORREL(INDEX(Gen_Corr_Output_Series!$A$1:$D$20,,ROW()-6),INDEX(Gen_Corr_Output_Series!$A$1:$D$20,,COLUMN()))","v":0.45270219248532478},{"$f":"CORREL(INDEX(Gen_Corr_Output_Series!$A$1:$D$20,,ROW()-6),INDEX(Gen_Corr_Output_Series!$A$1:$D$20,,COLUMN()))","v":0.34922549028156108},{"$f":"CORREL(INDEX(Gen_Corr_Output_Series!$A$1:$D$20,,ROW()-6),INDEX(Gen_Corr_Output_Series!$A$1:$D$20,,COLUMN()))","v":0.99999999999999989},{"$f":"CORREL(INDEX(Gen_Corr_Output_Series!$A$1:$D$20,,ROW()-6),INDEX(Gen_Corr_Output_Series!$A$1:$D$20,,COLUMN()))","v":0.16461941012256059},null,null,"How to generate correlated columns of numbers:"]
[{"$f":"CORREL(INDEX(Gen_Corr_Output_Series!$A$1:$D$20,,ROW()-6),INDEX(Gen_Corr_Output_Series!$A$1:$D$20,,COLUMN()))","v":-6.6959648464878258E-2},{"$f":"CORREL(INDEX(Gen_Corr_Output_Series!$A$1:$D$20,,ROW()-6),INDEX(Gen_Corr_Output_Series!$A$1:$D$20,,COLUMN()))","v":-0.13192431499757915},{"$f":"CORREL(INDEX(Gen_Corr_Output_Series!$A$1:$D$20,,ROW()-6),INDEX(Gen_Corr_Output_Series!$A$1:$D$20,,COLUMN()))","v":0.16461941012256059},{"$f":"CORREL(INDEX(Gen_Corr_Output_Series!$A$1:$D$20,,ROW()-6),INDEX(Gen_Corr_Output_Series!$A$1:$D$20,,COLUMN()))","v":0.99999999999999989},null,null,"1. Enter your input series into sheet Gen_Corr_Input_Series"]
[null,null,null,null,null,null,"2. Enter the desired target correlation matrix into this sheet, top left corner"]
["Correlation difference",null,null,null,null,null,"3. Press the button \"Generate correlated data\""]
[{"$f":"A7 - A1","v":0},7.020570839731477E-2,5.2702192485324761E-2,-6.6959648464878258E-2,null,null,"Adjust constant CMaxIter in module TestCorrelatedNumbers if necessary"]
[7.020570839731477E-2,0,4.9225490281561091E-2,6.8075685002420866E-2,null,null,"Re-press button if your largest absolute error is too high"]
[5.2702192485324761E-2,4.9225490281561091E-2,0,6.4619410122560589E-2,null,null,"Finally use correlated numbers in sheet Gen_Corr_Output_Series"]
[-6.6959648464878258E-2,6.8075685002420866E-2,6.4619410122560589E-2,0]
[]
["Largest absolute error"]
[{"$f":"MAX(ABS(A13:D16))","v":7.020570839731477E-2}]

{"sheet":"Gen_Corr_Input_Series","index":4,"n_rows":20,"n_cols":4,"rows_kept":20,"cut":false,"hidden":false,"merged":[]}
[123567,44770,15934,13273]
[126109,45191,16839,15406]
[138713,47453,17233,16706]
[139016,47941,17265,16891]
[152213,49345,17620,18821]
[153224,49420,17859,19569]
[153407,50686,20804,20166]
[155716,52931,21110,20796]
[155780,54010,22728,20968]
[161678,57346,24072,21178]
[161805,57685,25198,23236]
[167447,57698,25393,23375]
[170737,58380,30357,24019]
[171592,60948,30779,24785]
[178881,66972,32634,25000]
[181678,68053,33117,26754]
[184381,70592,35248,27079]
[206940,72243,36656,30136]
[217092,86685,38483,30757]
[240935,87138,39483,35108]

{"sheet":"Gen_Corr_Output_Series","index":5,"n_rows":20,"n_cols":4,"rows_kept":20,"cut":false,"hidden":false,"merged":[]}
[123567,47941,16839,24019]
[126109,44770,25198,35108]
[138713,54010,17859,13273]
[139016,49420,22728,16706]
[152213,60948,30357,19569]
[153224,49345,15934,30136]
[153407,52931,21110,20166]
[155716,50686,33117,23375]
[155780,57698,24072,20968]
[161678,45191,39483,18821]
[161805,57346,25393,30757]
[167447,57685,38483,27079]
[170737,47453,17265,21178]
[171592,58380,17233,24785]
[178881,66972,17620,15406]
[181678,70592,32634,26754]
[184381,68053,20804,16891]
[206940,86685,30779,20796]
[217092,72243,36656,25000]
[240935,87138,35248,23236]